[Event "Israeli Team-ch 2023"]
[Site "Petah Tikva"]
[Date "2023.01.20"]
[Round "3.16"]
[White "Dvoirys, Semen I."]
[Black "Levitan, Tal"]
[Result "1-0"]
[ECO "C82"]
[WhiteElo "2465"]
[BlackElo "2286"]
[Annotator "TA"]
[PlyCount "111"]
[EventDate "2023.01.13"]
[EventCountry "ISR"]
[SourceTitle "playchess.com"]
[Source "ChessBase"]
[SourceQuality "1"]
[TimeControl "40/5400+30:1800+30"]

{[%evp 20,111,33,18,20,10,77,0,54,60,64,52,66,3,54,0,0,0,36,39,75,50,34,40,112,102,119,69,73,21,22,0,48,18,45,39,63,0,0,0,0,0,29,29,33,14,14,12,15,0,7,0,0,0,0,8,17,13,33,33,56,56,225,66,272,274,518,400,553,498,970,993,997,934,705,683,531,1028,910,892,29957,29948,29968,29967,29980,29981,29982,29983,29982,29983,29987,29988,29989,29990]} 1. e4 {[%emt 0:00:30] ChessBase II} e5 {[%emt 0:04:29]} 2. Nf3 {[%emt 0:00:06]} Nc6 {[%emt 0:00:03]} 3. Bb5 {[%emt 0:00:14]} a6 {[%emt 0:00:05]} 4. Ba4 {[%emt 0:00:04]} Nf6 {[%emt 0:00:04]} 5. O-O {[%emt 0:00:07]} Nxe4 {[%emt 0:00:29]} 6. d4 {[%emt 0:00:06]} b5 {[%emt 0:00:04]} 7. Bb3 {[%emt 0:00:05]} d5 {[%emt 0:00:04]} 8. dxe5 {[%emt 0:00:05]} Be6 {[%emt 0:00:03]} 9. c3 {[%emt 0:00:34]} Bc5 {[%emt 0:00:24]} 10. Qd3 {[%emt 0:00:14]} O-O {[%emt 0:00:11]} 11. Be3 {[%emt 0:00:05]} (11. Nbd2 $5 {[%cal Rd2e4]}) 11... f6 {[%emt 0:25:18] C82: Open Ruy Lopez: 9 c3 without 9...Be7.} 12. Nbd2 {[%emt 0:11:50]} f5 {[%emt 0:08:54] [#]} (12... fxe5 $2 13. Nxe4 Bxe3 14. Qxe3 $18) (12... Nxd2 $1 $11 13. Qxd2 Bxe3 14. Qxe3 Nxe5) 13. Ng5 $146 {[%emt 0:29:54]} ({Predecessor:} 13. Bxc5 Nxc5 14. Qe3 Qe7 15. Nd4 Nxd4 16. cxd4 Nb7 17. Rac1 Rfc8 18. Nf3 h6 19. Bc2 {1-0 Valujevs,G-Leander,K ICCF-Cup6/7 sf11 corr 1990}) 13... Nxg5 {[%emt 0:13:06]} (13... Nxe5 $11 14. Qe2 Re8) 14. Bxc5 $14 {[%emt 0:00:06]} Re8 {[%emt 0:00:21]} (14... Nxe5 15. Qe2 Nd7 16. Bxf8 Qxf8 17. Rfe1 $16) 15. Bd4 {[%emt 0:09:00]} f4 {[%emt 0:20:30]} 16. a4 {[%emt 0:02:50]} (16. h4 $1 $14 Nf7 17. Nf3) 16... Rf8 {[%emt 0:02:44]} ({Better is} 16... Ne7 $11) 17. f3 {[%emt 0:01:07]} (17. axb5 $14 f3 18. g3 (18. bxc6 $2 Nh3+ 19. Kh1 fxg2+ 20. Kxg2 Nf4+ 21. Kh1 Nxd3 $19) 18... Nxd4 19. Qxd4 (19. cxd4 Bh3 $11) 19... Nh3+ 20. Kh1 axb5 21. Rxa8 Qxa8 22. Qe3) 17... Bf5 $11 {[%emt 0:04:25]} 18. Qe2 {[%emt 0:00:06]} Ne6 {[%emt 0:00:08]} 19. Bf2 {[%emt 0:04:38]} b4 {[%emt 0:02:29]} 20. Rad1 {[%emt 0:09:27][%cal Od2e4]} bxc3 {[%emt 0:02:17]} 21. bxc3 {[%emt 0:12:31][%cal Od2e4]} Ne7 {[%emt 0:00:23] [#]} (21... Rb8 $14) 22. Ne4 $1 $16 {[%emt 0:00:39][%mdl 512]} c6 {[%emt 0:06:10]} (22... Rb8 23. Ba2) 23. Nd6 {[%emt 0:02:12]} (23. c4 $1 $16) 23... Rb8 $14 {[%emt 0:00:07] [#]} 24. Bc4 {[%emt 0:06:26] White is much more active.} Qa5 $1 $11 {[%emt 0:03:21]} 25. Bxa6 {[%emt 0:01:36]} Rb3 {[%emt 0:00:23]} (25... Qxc3 $11 26. Rc1 Qa5) 26. Nxf5 {[%emt 0:01:45]} Nxf5 {[%emt 0:00:20]} 27. Bd3 {[%emt 0:00:59]} Rxc3 {[%emt 0:03:07]} 28. Qd2 {[%emt 0:00:25]} (28. Qe1 $14 Ne3 29. Rc1) 28... Ne3 {[%emt 0:00:23]} 29. Bxe3 {[%emt 0:00:58]} fxe3 {[%emt 0:00:04]} 30. Qxe3 {[%emt 0:00:15]} Nf4 {[%emt 0:01:46]} 31. g3 {[%emt 0:03:02]} Nxd3 {[%emt 0:00:31]} 32. Rxd3 {[%emt 0:00:06]} Rxd3 {[%emt 0:00:05]} 33. Qxd3 {[%emt 0:00:04]} Qxa4 {[%emt 0:00:10][%mdl 4096] Endgame KQR-KQR} 34. f4 {[%emt 0:00:25]} Rb8 {[%emt 0:01:27]} 35. e6 {[%emt 0:01:14]} Rb2 {[%emt 0:01:03]} 36. Qf5 {[%emt 0:02:24] Threatening mate with Qf7+.} Qd4+ {[%emt 0:00:44]} 37. Kh1 {[%emt 0:00:07] Qf7+ would kill now.} Qf6 {[%emt 0:00:58] Repels Qf7+} 38. Qxf6 {[%emt 0:01:05]} gxf6 {[%emt 0:00:01] KR-KR} 39. Rc1 {[%emt 0:00:05]} Rb6 {[%emt 0:01:10]} 40. f5 {[%emt 0:00:34] g4 would be deadly.} Kf8 $2 {[%emt 0:00:04] White leaves nothing to chance now.} (40... h5 $1 $14) 41. Kg2 $2 {[%emt 0:10:01]} (41. g4 $1 $18) 41... Ke7 $2 {[%emt 0:09:47]} (41... h5 $1 $14) 42. g4 $1 $18 {[%emt 0:00:43]} h6 $2 {[%emt 0:01:01]} (42... Rb4 {might work better.}) 43. Kg3 {[%emt 0:09:48]} Kd6 {[%emt 0:13:22]} 44. Kh4 {[%emt 0:00:21] aiming for Kh5.} Rb8 {[%emt 0:00:23]} (44... c5 $142 45. Kh5 Rb7) 45. Kh5 {[%emt 0:00:20]} Rg8 {[%emt 0:04:08]} 46. h3 {[%emt 0:00:58]} ({Inferior is} 46. Kxh6 Rxg4 47. h3 Rg3 $11) 46... c5 {[%emt 0:00:04]} 47. Kxh6 {[%emt 0:00:05] And now Kh7 would win.} c4 {[%emt 0:00:01]} 48. Kh7 {[%emt 0:00:14]} Rc8 {[%emt 0:01:49]} 49. Re1 {[%emt 0:06:22][%cal Og4g5] White threatens g5! and mate.} c3 {[%emt 0:01:25] [#]} 50. g5 $1 {[%emt 0:00:07][%cal Bg4g5,Bg5f6,Bf6f7][%mdl 544] White mates.} c2 {[%emt 0:02:16]} (50... fxg5 51. f6) 51. e7 {[%emt 0:03:37]} (51. gxf6 c1=Q 52. Rxc1 Rxc1 $19) 51... Kd7 {[%emt 0:00:10]} 52. gxf6 {[%emt 0:01:01]} c1=Q {[%emt 0:00:06]} 53. e8=Q+ {[%emt 0:00:20]} (53. Rxc1 Rxc1 54. Kg7 Rc8 55. h4 d4 56. e8=R Kxe8 57. f7+ Ke7 58. f6+ Ke6 59. f8=Q Rxf8 60. Kxf8 Kxf6 61. h5 d3 62. h6 Kg6 63. Ke8 Kxh6 64. Ke7 d2 65. Kd8 d1=Q+ 66. Kc8 Kg5 67. Kb7 Qd5+ 68. Kc8 Kf5 69. Kc7 Ke5 70. Kc8 Kd6 71. Kb8 Qb3+ 72. Ka8 Kc7 73. Ka7 Qb7#) 53... Rxe8 {[%emt 0:00:19]} 54. Rxc1 {[%emt 0:00:05]} Re3 {[%emt 0:00:37]} 55. f7 {[%emt 0:02:25]} Ke7 {[%emt 0:02:01] [#]} 56. Rc7+ $1 {[%emt 0:00:11] Weighted Error Value: White=0.22 (precise) /Black=0.44} 1-0

[Event "Israeli Team-ch 2023"]
[Site "Petah Tikva"]
[Date "2023.01.20"]
[Round "3.17"]
[White "Gov, Guy"]
[Black "Klenburg, Michael"]
[Result "1/2-1/2"]
[ECO "C02"]
[WhiteElo "2103"]
[BlackElo "2347"]
[Annotator "TA"]
[PlyCount "76"]
[EventDate "2023.01.13"]
[EventCountry "ISR"]
[SourceTitle "playchess.com"]
[Source "ChessBase"]
[SourceQuality "1"]
[TimeControl "40/5400+30:1800+30"]

{[%evp 16,76,0,0,15,15,15,0,11,10,16,17,48,32,31,6,24,7,0,-8,-6,-23,5,17,20,12,7,0,0,0,0,-18,0,-19,-29,-213,-86,-254,-264,-280,0,0,0,-354,-328,-573,-568,-739,-716,-1422,-1399,-1390,-1313,-1266,-1249,-29985,-29986,-29986,0,0,0,-29986,0]} 1. e4 {[%emt 0:04:47]} e6 {[%emt 0:00:31]} 2. d4 {[%emt 0:00:06]} d5 {[%emt 0:00:17]} 3. e5 {[%emt 0:00:08]} c5 {[%emt 0:00:21]} 4. c3 {[%emt 0:00:06]} Qb6 {[%emt 0:00:17]} 5. a3 {[%emt 0:00:08]} Nc6 {[%emt 0:00:32][%cal Bb8c6,Bc6a5,Ba5b3][%mdl 32]} 6. Nf3 {[%emt 0:00:08][%cal Bg1f3,Bf3e1,Be1c2,Bc2e3][%mdl 32]} c4 {[%emt 0:00:34]} 7. Be2 {[%emt 0:00:30]} Bd7 {[%emt 0:00:26]} 8. Nbd2 {[%emt 0:00:07]} Na5 {[%emt 0:00:43]} 9. Rb1 {[%emt 0:00:08]} Rc8 {[%emt 0:03:46] C02: French: Advance Variation.} 10. O-O {[%emt 0:03:37]} Ne7 {[%emt 0:02:24]} 11. Ne1 {[%emt 0:05:42]} Nb3 {[%emt 0:03:37] [#] The position is equal.} 12. Nc2 $146 {[%emt 0:02:51]} ({Predecessor:} 12. Nxb3 Ba4 13. Qd2 Bxb3 14. Nc2 Nc6 15. Ne3 Na5 16. Qe1 h5 17. f4 g6 18. Bd1 Bxd1 19. Qxd1 {½-½ Vaval,A (1367)-Kohad,D (1569) Mumbai Wealth rating op 4th 2018 (5)}) 12... Nxd2 {[%emt 0:06:13]} 13. Qxd2 {[%emt 0:01:30]} Nc6 {[%emt 0:03:07][%cal Be7c6,Bc6a5,Ba5b3][%mdl 32]} 14. Bd1 {[%emt 0:21:16]} Na5 {[%emt 0:03:50]} 15. Ne3 {[%emt 0:00:35]} Bxa3 {[%emt 0:06:24]} 16. b4 {[%emt 0:00:33]} Bxc1 {[%emt 0:00:12]} 17. Qxc1 {[%emt 0:00:05] [#]} Nb3 {[%emt 0:05:09]} 18. Qb2 {[%emt 0:03:02]} (18. Bxb3 cxb3) 18... O-O {[%emt 0:06:10]} 19. f4 {[%emt 0:11:46]} a5 {[%emt 0:05:21]} 20. bxa5 {[%emt 0:00:12]} Qxa5 {[%emt 0:00:06]} 21. Rf3 {[%emt 0:13:43]} Ra8 $1 {[%emt 0:16:31]} 22. Qc2 {[%emt 0:00:20]} Qa2 {[%emt 0:08:26]} 23. Rb2 {[%emt 0:00:07]} Qa1 {[%emt 0:00:04]} (23... Qa7 $5 {[%cal Rb7b5]}) 24. Rh3 {[%emt 0:12:21][%csl Gh3][%cal Rc2h7]} h6 {[%emt 0:01:34]} 25. g4 $2 {[%emt 0:05:01] [#]} (25. Rb1 $11 {and White stays safe.} Qa2 26. Qxa2 Rxa2 27. Bxb3 cxb3 28. Rxb3) 25... Qc1 {[%emt 0:03:40]} (25... Ba4 $1 $19 {[%cal Ob3d4] and Black stays clearly on top. ...Nxd4! is the strong threat.} 26. Qb1 (26. Ra2 $2 Nxd4 {[%mdl 64] Pin} 27. Qd2 Ne2+ 28. Kh1 Qxc3 $19) 26... Qxb1 27. Rxb1 Nd2) 26. Qf2 $2 {[%emt 0:00:04]} (26. g5 $17 {keeps fighting.}) 26... Qxc3 $19 {[%emt 0:03:50]} 27. g5 {[%emt 0:02:45]} Qxd4 $2 {[%emt 0:06:38]} ({Not} 27... Nxd4 28. gxh6 g6 29. Qh4 $11) (27... Ra1 $19 28. Kg2 Nc1 29. Nxd5 (29. gxh6 Nd3 $11) 29... Qxh3+ 30. Kxh3 exd5+ 31. Bg4 Nd3) 28. gxh6 $11 {[%emt 0:02:54]} g6 {[%emt 0:00:23]} 29. h7+ $2 {[%emt 0:00:39][%mdl 8192]} (29. Qh4 $1 $11 f6 30. Rb1) 29... Kh8 $19 {[%emt 0:00:04]} 30. Qh4 $2 {[%emt 0:04:44]} (30. Bxb3 {only move.} cxb3 31. Nf1 Qxf2+ 32. Kxf2) 30... f6 {[%emt 0:00:33]} (30... Qxb2 $2 31. Qf6#) (30... g5 {gets mated.} 31. Qxg5 f6 32. Qg8+ Rxg8+ 33. hxg8=Q+ Kxg8 34. Rg2+ Kf7 35. Rh7+ Kf8 36. Rh8+ Kf7 37. Bh5+ Ke7 38. Rg7#) 31. Rg2 {[%emt 0:00:10]} Ra1 {[%emt 0:06:13]} (31... fxe5 {is a self mate.} 32. Rxg6 Qd3 33. Rg8+ Rxg8+ 34. hxg8=Q+ Kxg8 35. Qf6) 32. Kh1 {[%emt 0:00:03]} Rxd1+ {[%emt 0:05:43]} 33. Nxd1 {[%emt 0:00:00] White is weak on the light squares} Qxd1+ {[%emt 0:00:07]} 34. Rg1 {[%emt 0:00:04]} Qc2 {[%emt 0:01:48] aiming for ...d4.} 35. Qh6 {[%emt 0:00:23]} Qe4+ {[%emt 0:00:21]} 36. Rg2 {[%emt 0:00:06]} Qb1+ {[%emt 0:00:08]} 37. Rg1 {[%emt 0:00:06][%cal Rh6f8] Dancing on a razor blade.} Qe4+ {[%emt 0:00:36]} 38. Rg2 {[%emt 0:00:01][%cal Rh6f8]} Qe1+ $2 {[%emt 0:01:09] Weighted Error Value: White=1.11/Black=0.31} (38... Ra8 {mates} 39. Qf8+ Rxf8 40. Re3 Qxe3 41. h4 Ra8 42. exf6 Qe1+ 43. Rg1 Qxh4+ 44. Kg2 Ra2+ 45. Kf3 Rf2+ 46. Ke3 Qxf4#) 1/2-1/2

[Event "Israeli Team-ch 2023"]
[Site "Petah Tikva"]
[Date "2023.01.20"]
[Round "3.18"]
[White "Taichman, Ori"]
[Black "Linker, Mikhail"]
[Result "0-1"]
[ECO "B23"]
[WhiteElo "2317"]
[BlackElo "2297"]
[Annotator "TA"]
[PlyCount "138"]
[EventDate "2023.01.13"]
[EventCountry "ISR"]
[SourceTitle "playchess.com"]
[Source "ChessBase"]
[SourceQuality "1"]
[TimeControl "40/5400+30:1800+30"]

{[%evp 9,138,5,5,14,14,0,8,0,8,3,6,-6,-6,-62,-61,-81,-85,-131,-133,-264,-84,-91,-101,-88,-92,-97,-95,-100,-77,-163,-166,-190,-117,-137,-97,-97,-97,-97,-97,-97,-97,-97,-91,-88,-97,-107,-103,-113,-94,-128,-131,-127,-84,-127,-83,-90,-89,-183,-175,-194,-198,-1963,-1963,-1697,-1719,-1704,-1633,-1535,-1616,-1166,-1319,-976,-705,-4718,-5197,-12840,-12843,-12843,-12847,-12849,-12845,-12841,-12844,-29939,-12847,-29946,-12842,-29949,-12842,-5683,-12790,-7568,-8025,-5505,-5141,-4426,-2508,-29981,-29982,-29982,-29983,-29984,-29985,-29985,-29986,-29986,-29985,-29985,-29982,-29982,-29983,-29983,-29984,-29984,-29985,-29985,-29986,-29990,-29991,-29995,-29987,-29987,-29988,-29988,-29989,-29989,-29990,-29991,-29990,-29991,-29992]} 1. e4 {[%emt 0:03:24]} c5 {[%emt 0:02:47]} 2. Nc3 {[%emt 0:00:23]} Nc6 {[%emt 0:00:30]} 3. Bb5 {[%emt 0:00:03]} Nd4 {[%emt 0:01:22]} 4. Nf3 {[%emt 0:00:03]} a6 {[%emt 0:00:55]} 5. Bd3 {[%emt 0:00:03]} g6 {[%emt 0:02:27]} 6. Nxd4 {[%emt 0:01:05] B23: Closed Sicilian: Lines without g3.} cxd4 {[%emt 0:00:07]} 7. Ne2 {[%emt 0:00:06]} Bg7 {[%emt 0:01:52]} 8. c3 {[%emt 0:00:04] The position is equal.} dxc3 {[%emt 0:00:30]} 9. bxc3 {[%emt 0:03:38]} d5 {[%emt 0:07:40] [#]} 10. Qb3 $146 {[%emt 0:02:48]} ({Predecessor:} 10. O-O dxe4 11. Bxe4 Nf6 12. Bf3 O-O 13. d4 Ra7 14. a4 b6 15. Rb1 Bb7 16. Bxb7 Rxb7 {1-0 Pridorozhni,A (2564)-Maksimovic,B (2452) Titled Tuesday intern op 05th Oct blitz 2021 (5)}) 10... Nf6 {[%emt 0:08:17]} 11. exd5 {[%emt 0:04:49]} (11. e5 $11 Ne4 12. Qa4+ Bd7 13. Qd4) 11... O-O $1 $15 {[%emt 0:02:33]} 12. Rb1 {[%emt 0:06:58]} Nxd5 {[%emt 0:05:42]} (12... Qxd5 $6 13. Qxd5 Nxd5 14. a4 $11) 13. Bc4 {[%emt 0:01:25]} (13. Qc2 $142) 13... Be6 $17 {[%emt 0:11:52]} 14. a4 {[%emt 0:04:52]} (14. O-O $17 {was necessary.}) 14... Rb8 $2 {[%emt 0:03:17]} (14... Rc8 $19 {[%cal Ob7b5] and Black stays clearly on top. Threatens to win with ...b5!} 15. d3 b5 16. axb5 axb5 17. Bxd5 Bxd5 18. Qxb5 Bxg2) 15. O-O {[%emt 0:10:20] [#]} b5 $1 {[%emt 0:05:02]} 16. axb5 {[%emt 0:00:08]} axb5 {[%emt 0:00:07]} 17. Bxd5 {[%emt 0:00:06]} Bxd5 {[%emt 0:02:38]} 18. Qc2 {[%emt 0:03:46] White is weak on the light squares} e5 {[%emt 0:04:52]} 19. d4 {[%emt 0:10:27]} (19. d3 $17) 19... Re8 $19 {[%emt 0:08:26] ...exd4 would be deadly.} 20. Qd2 {[%emt 0:09:40]} Bc4 {[%emt 0:07:44] This pair of bishops is nice.} (20... Qe7 $19 {aiming for ...exd4.} 21. Ng3 exd4 22. cxd4 h5) 21. Rd1 {[%emt 0:03:36]} Bxe2 {[%emt 0:06:44]} 22. Qxe2 {[%emt 0:00:03]} exd4 {[%emt 0:00:06]} 23. Be3 {[%emt 0:00:11]} Qb6 {[%emt 0:00:51]} 24. cxd4 {[%emt 0:00:18] [#]} Bxd4 $1 {[%emt 0:00:16]} 25. Bxd4 {[%emt 0:09:08] And now Qxe8+ would win.} (25. Rxd4 $2 Qxd4 26. Qe1 Qd5 $19) 25... Rxe2 {[%emt 0:00:06]} 26. Bxb6 {[%emt 0:00:07]} Rxb6 $17 {[%emt 0:00:03][%mdl 4096] Endgame KRR-KRR} 27. Kf1 {[%emt 0:03:14]} Rc2 {[%emt 0:06:31]} 28. Rb4 {[%emt 0:03:35]} Re6 {[%emt 0:04:13]} 29. Rdb1 {[%emt 0:14:42]} ({Much worse is} 29. Rxb5 Ree2 30. Rg5 Rxf2+ 31. Kg1 Kg7 $17) 29... Ree2 {[%emt 0:02:12] Black is more active.} 30. Rf4 {[%emt 0:00:14]} Re5 {[%emt 0:00:25]} 31. g4 {[%emt 0:01:41]} h5 {[%emt 0:02:56]} 32. h3 {[%emt 0:01:50]} Kg7 {[%emt 0:01:09]} 33. Rb3 {[%emt 0:00:42]} (33. Kg2 $17) 33... Rc4 $19 {[%emt 0:02:11]} 34. Rxc4 {[%emt 0:00:36]} bxc4 {[%emt 0:00:03][%cal Bb5c4,Bc4c3,Bc3c2][%mdl 32] KR-KR} 35. Rb6 {[%emt 0:01:38]} (35. Rb4) 35... hxg4 {[%emt 0:00:25]} 36. hxg4 {[%emt 0:00:06]} Rc5 {[%emt 0:00:07] Strongly threatening ...c3.} 37. Ke2 {[%emt 0:00:15] [#]} c3 $1 {[%emt 0:00:40]} 38. Kd1 {[%emt 0:00:13]} c2+ {[%emt 0:00:09]} 39. Kc1 {[%emt 0:00:01]} Rc4 {[%emt 0:00:49]} 40. Rd6 {[%emt 0:01:44]} g5 {[%emt 0:01:15]} ({And not} 40... Rxg4 41. Kxc2 Rf4 42. Rd2 $17) 41. Rd2 {[%emt 0:08:44]} Kf6 {[%emt 0:02:31] White must now prevent ...Ke5.} ({Not} 41... Rxg4 42. Kxc2 Re4 43. Kd3 $17) 42. Re2 {[%emt 0:00:08]} Rxg4 {[%emt 0:00:30]} 43. Kxc2 {[%emt 0:00:27]} Rd4 {[%emt 0:00:05]} 44. Kc3 {[%emt 0:01:19]} Rd7 {[%emt 0:01:25]} 45. Re3 {[%emt 0:04:25]} Kf5 {[%emt 0:00:53]} 46. Rf3+ {[%emt 0:00:02]} Ke5 {[%emt 0:01:27] ( -> ...f5)} 47. Kc2 {[%emt 0:00:55]} f5 {[%emt 0:02:23]} (47... g4 $142 48. Ra3 Kf4 49. Rc3 f5 50. Rb3 Rd4 51. Ra3 Ke5 52. Ra8 Rf4 53. Kd3 Rxf2 54. Ke3 g3 55. Ra5+ Kf6 56. Rb5 f4+ 57. Kd4 g2 58. Rb6+ Kf5 59. Rb5+ Kg4 60. Rb6 Rd2+ 61. Kc3 Re2 62. Rg6+ Kf5 63. Rg8 f3 64. Rf8+ Ke4 65. Re8+ Kf4 66. Rg8 Ke3 67. Rg6 Kf2 68. Rg7 g1=Q 69. Rxg1 Kxg1 70. Kd3 Kh2 71. Kc3 f2 72. Kb3 f1=Q 73. Kc4 Qd1 74. Kb5 Rc2 75. Ka6 Qb1 76. Ka7 Ra2#) 48. Kc3 {[%emt 0:00:17]} g4 {[%emt 0:03:41]} (48... f4 $142 49. Kc2 Ke4 50. Rc3 g4 51. Rb3 g3 52. fxg3 f3 53. Rb8 f2 54. Rf8 Ke3 55. Rf6 Rd4 56. Rf5 Ke2 57. Re5+ Kf3 58. Kc3 Rg4 59. Rf5+ Kg2 60. Kd2 f1=Q 61. Rxf1 Kxf1 62. Ke3 Kg2 63. Ke2 Rxg3 64. Ke1 Re3+ 65. Kd1 Kf3 66. Kc1 Re2 67. Kb1 Ke3 68. Ka1 Kd3 69. Kb1 Kc3 70. Ka1 Kb3 71. Kb1 Re1#) 49. Re3+ {[%emt 0:00:08]} Kf4 {[%emt 0:00:06]} (49... Kf6 $142 50. Rg3 Kg5) 50. Kc2 {[%emt 0:00:04]} Kg5 {[%emt 0:00:38]} 51. Re5 {[%emt 0:00:15]} Rd4 {[%emt 0:02:24]} 52. Kc1 {[%emt 0:01:51]} Kf4 {[%emt 0:01:06]} 53. Re3 {[%emt 0:01:00]} Re4 {[%emt 0:00:43] Black mates.} 54. Rd3 {[%emt 0:01:21]} Re2 {[%emt 0:00:26]} 55. Rd4+ {[%emt 0:00:06]} Kf3 {[%emt 0:00:49]} 56. Kd1 {[%emt 0:00:07]} Rxf2 {[%emt 0:00:23]} 57. Ke1 {[%emt 0:00:03]} Ra2 {[%emt 0:00:07]} 58. Rd3+ {[%emt 0:00:04]} Ke4 {[%emt 0:00:23]} 59. Rg3 {[%emt 0:00:05]} Kf4 {[%emt 0:00:36]} 60. Rb3 {[%emt 0:00:01]} g3 {[%emt 0:00:12]} 61. Kf1 {[%emt 0:00:05]} Kg4 {[%emt 0:00:07]} 62. Rb8 {[%emt 0:00:24]} f4 {[%emt 0:00:19][%cal Bf5f4,Bf4f3,Bf3f2][%mdl 32]} 63. Rb4 {[%emt 0:01:19]} Kh3 {[%emt 0:02:25]} 64. Rb8 {[%emt 0:00:02]} Ra1+ {[%emt 0:00:07]} 65. Ke2 {[%emt 0:00:01]} Kg2 {[%emt 0:00:06]} 66. Rb2 {[%emt 0:00:06]} f3+ {[%emt 0:00:07]} 67. Ke3+ {[%emt 0:00:02]} f2 {[%emt 0:00:06]} 68. Kf4 {[%emt 0:00:20]} Ra4+ {[%emt 0:00:11]} 69. Ke3 {[%emt 0:00:03]} Kg1 {[%emt 0:00:40] Weighted Error Value: White=0.90/Black=0.21 (precise)} 0-1

[Event "Israeli Team-ch 2023"]
[Site "Petah Tikva"]
[Date "2023.01.20"]
[Round "3.19"]
[White "Boruchovsky, Avital"]
[Black "Fridman, Daniel"]
[Result "0-1"]
[ECO "C11"]
[WhiteElo "2553"]
[BlackElo "2595"]
[Annotator "TA"]
[PlyCount "112"]
[EventDate "2023.01.13"]
[EventCountry "ISR"]
[SourceTitle "playchess.com"]
[Source "ChessBase"]
[SourceQuality "1"]
[TimeControl "40/5400+30:1800+30"]

{[%evp 25,112,0,7,0,0,0,3,0,8,0,0,0,0,-7,0,0,19,19,19,19,21,21,21,21,30,8,5,5,5,7,5,5,5,0,0,0,0,0,0,-191,-197,-199,-166,-183,-169,-321,-315,-595,-293,-283,-268,-273,-295,-283,-290,-246,-278,-252,-267,-251,-256,-295,-272,-266,-254,-254,-249,-322,-314,-29964,-29964,-29964,-29964,-29970,-29971,-29973,-29974,-29974,-29975,-29975,-29976,-29976,-29977,-29981,-29982,-29982,-29980,-29979,-29980]} 1. e4 {[%emt 0:00:03]} e6 {[%emt 0:10:06]} 2. d4 {[%emt 0:00:33]} d5 {[%emt 0:00:38]} 3. Nc3 {[%emt 0:00:18]} Nf6 {[%emt 0:00:53]} 4. e5 {[%emt 0:02:36]} Nfd7 {[%emt 0:00:05]} 5. f4 {[%emt 0:00:11]} c5 {[%emt 0:00:04]} 6. Nf3 {[%emt 0:00:23]} Nc6 {[%emt 0:00:05]} 7. Be3 {[%emt 0:02:34]} cxd4 {[%emt 0:01:49]} 8. Nxd4 {[%emt 0:00:07]} Qb6 {[%emt 0:00:05]} 9. a3 {[%emt 0:03:10]} Bc5 {[%emt 0:02:06]} 10. Na4 {[%emt 0:00:56]} Qa5+ {[%emt 0:00:05]} 11. c3 {[%emt 0:05:38]} Bxd4 {[%emt 0:00:10]} 12. Bxd4 {[%emt 0:05:37]} Nxd4 {[%emt 0:00:05]} 13. Qxd4 {[%emt 0:01:23]} b6 {[%emt 0:00:06]} 14. Qb4 $1 {[%emt 0:00:38] C11: French: Classical System: 4 e5 and 4 Bg5 dxe4.} Qxb4 {[%emt 0:03:58]} 15. axb4 {[%emt 0:01:32]} Bb7 {[%emt 0:18:17][%cal Og7g5]} 16. Bb5 {[%emt 0:10:58] The position is equal.} Ke7 {[%emt 0:00:17]} 17. Kd2 {[%emt 0:05:48]} Rhc8 {[%emt 0:05:53]} 18. b3 {[%emt 0:07:22]} Bc6 {[%emt 0:13:03]} 19. Ba6 {[%emt 0:09:23] Black must now prevent b5.} Rc7 {[%emt 0:00:15] [#]} 20. Nb2 $146 {[%emt 0:00:06][%cal Ba4b2,Bb2d3,Bd3c1,Bc1e2][%mdl 32]} ({Predecessor:} 20. Rhe1 Nb8 21. Bd3 Nd7 22. Nb2 a5 23. bxa5 bxa5 24. Ra3 Nc5 25. Bc2 Rb8 26. Rea1 {½-½ Salem,A (2567)-Hoang,T (2495) Jakarta Indonesia op 3rd 2013 (8)}) 20... b5 {[%emt 0:04:40][%cal Og7g5]} 21. Nd3 {[%emt 0:03:00]} Rb8 {[%emt 0:00:15] Black is weak on the dark squares} 22. Rhc1 {[%emt 0:02:41]} Rb6 {[%emt 0:04:05]} 23. Ra5 {[%emt 0:06:48]} Nb8 {[%emt 0:05:39]} 24. Rca1 {[%emt 0:00:10]} Be8 {[%emt 0:02:54]} 25. Nc1 {[%emt 0:03:07]} f6 {[%emt 0:07:30]} 26. Ne2 {[%emt 0:00:22]} fxe5 {[%emt 0:01:01]} 27. fxe5 {[%emt 0:00:05]} Nc6 {[%emt 0:01:45][%csl LRa5,LRe5]} 28. Rxb5 {[%emt 0:00:10] Rc5 would be deadly.} Nxe5 {[%emt 0:00:33]} 29. Rba5 {[%emt 0:00:09]} (29. Rxb6 {simplifies} axb6 30. Nd4 Ra7 31. Nxe6 Kxe6 32. Bc8+) 29... Nc6 $1 {[%emt 0:02:30] Repels Nd4} 30. Rc5 {[%emt 0:01:47]} Kd6 $1 {[%emt 0:02:23]} 31. Bb5 {[%emt 0:05:55]} a5 $1 {[%emt 0:04:29]} 32. Rc1 $2 {[%emt 0:08:03] Black converts the advantage convincingly.} (32. Bxc6 $11 {and White is okay.} axb4 33. Rxd5+ Kxc6 34. Rd3) 32... axb4 $19 {[%emt 0:02:12]} 33. cxb4 {[%emt 0:00:01]} Rcb7 {[%emt 0:01:31]} 34. Ba4 {[%emt 0:00:56]} Bd7 {[%emt 0:00:06]} 35. Nc3 $2 {[%emt 0:03:47]} (35. Bxc6 Bxc6 36. Nd4) 35... Nd4 {[%emt 0:04:08]} (35... Rxb4 $2 36. Bxc6 Bxc6 37. Rxc6+ Kxc6 38. Na2+ Kd6 39. Nxb4 Rxb4 40. Kc3 $19) (35... Nxb4 36. Bxd7 Rxd7 37. Nb5+ Ke7 38. Nd4 $17) 36. Bxd7 $2 {[%emt 0:00:19]} (36. Ne2 Rxb4 37. Nxd4 Rxd4+ 38. Ke3 Re4+ 39. Kf3) 36... Kxd7 {[%emt 0:00:41]} (36... Nxb3+ $142 37. Kc2 Rxb4) 37. Nxd5 {[%emt 0:00:21]} exd5 {[%emt 0:00:28]} (37... Nxb3+ 38. Kc2 exd5 39. Kxb3 Rxb4+ 40. Kc3 $17) 38. Rxd5+ {[%emt 0:00:04]} Rd6 {[%emt 0:00:07]} 39. Rxd6+ {[%emt 0:00:02]} Kxd6 {[%emt 0:00:09][%mdl 4096] Endgame KRN-KR} 40. Rc4 {[%emt 0:00:01]} Nc6 {[%emt 0:02:06]} ({Worse is} 40... Nxb3+ 41. Kc2 $11) 41. Kc3 {[%emt 0:30:10]} Ne7 {[%emt 0:30:50]} 42. Rh4 {[%emt 0:02:18]} Nd5+ {[%emt 0:00:58]} 43. Kb2 {[%emt 0:00:03]} h6 {[%emt 0:01:14]} (43... Rxb4 $2 {loses.} 44. Rxh7 Rb7 45. Rh4 $17) 44. Ka3 {[%emt 0:00:29]} Ra7+ {[%emt 0:00:06]} 45. Kb2 {[%emt 0:00:05]} Rf7 {[%emt 0:00:17] Threatens to win with ...Rf2+.} 46. Ka3 {[%emt 0:02:34]} Rf4 {[%emt 0:00:31]} 47. Rxf4 {[%emt 0:00:30] [#]} (47. Rh3 $19) 47... Nxf4 {[%emt 0:00:06] KN-KP. Black mates.} 48. g3 {[%emt 0:00:01]} Nd5 {[%emt 0:02:20]} 49. Ka4 {[%emt 0:00:48]} Kc6 {[%emt 0:00:00]} 50. Ka5 {[%emt 0:00:00]} h5 {[%emt 0:00:00]} 51. b5+ {[%emt 0:00:00]} Kb7 {[%emt 0:00:00]} 52. b6 {[%emt 0:00:00]} Ne3 {[%emt 0:00:00]} (52... Nxb6 $2 {perishes.} 53. Kb5 $19) 53. Kb5 {[%emt 0:00:00]} Nf1 {[%emt 0:00:00][%mdl 64] [#] Deflection} 54. h3 {[%emt 0:00:00]} Nxg3 {[%emt 0:00:00]} 55. Kc5 {[%emt 0:00:00]} Ne4+ {[%emt 0:00:00]} 56. Kd5 {[%emt 0:00:00]} Ng5 {[%emt 0:00:00] Weighted Error Value: White=0.40/Black=0.11 (very precise)} 0-1